bitfinex/quotes_ETHUSD_20250623
["timestamp","ask_amount","ask_price","bid_price","bid_amount"]
[1750648802040,1.957,2245.0,2244.9,0.0572]
[1750648802242,7.265,2245.0,2244.9,0.54637471]
[1750648802539,7.265,2245.0,2244.9,0.0572]
[1750648803006,7.265,2245.0,2244.9,4.8472]
[1750648803566,7.265,2245.0,2244.9,4.79]
[1750648803970,7.265,2245.0,2244.9,6.129528]
[1750648804933,7.265,2245.0,2244.9,4.8472]
[1750648805348,1.957,2245.1,2244.9,4.8472]
[1750648805550,9.221,2245.0,2244.9,5.4658776]
[1750648805878,9.221,2245.0,2244.9,15.4658776]
[1750648806064,9.221,2245.0,2244.9,16.2754776]
[1750648806649,0.2976,2245.4,2244.9,6.2182776]
[1750648806950,7.263,2245.0,2244.9,6.2754776]
[1750648808074,0.2976,2245.4,2244.9,6.2754776]
[1750648808252,9.22,2245.0,2244.9,5.6568]
[1750648809073,9.218,2245.0,2244.9,5.6568]
[1750648809486,9.218,2245.0,2244.9,4.8472]
[1750648811953,0.2976,2245.4,2244.9,4.79]
[1750648812149,9.216,2245.3,2245.0,0.0572]
[1750648812355,9.216,2245.3,2244.9,4.8472]
[1750648812554,9.216,2245.3,2244.9,6.186728]
[1750648813078,0.2976,2245.1,2244.9,6.129528]
[1750648813279,0.2976,2245.1,2244.8,4.79]
[1750648813772,0.059,2245.0,2244.8,4.79]
[1750648814355,0.3566,2245.1,2244.8,4.79]
[1750648815080,0.2976,2245.1,2244.8,4.848]
[1750648815375,9.216,2245.0,2244.8,4.848]
[1750648815975,9.216,2245.0,2244.8,4.79]
[1750648816774,0.2976,2245.1,2244.8,4.79]
[1750648816979,9.216,2245.0,2244.8,4.79]
[1750648817478,9.214,2244.9,2244.8,4.848]
[1750648818359,1.957,2245.1,2244.9,10.058]
[1750648818543,1.957,2245.1,2244.8,5.35799]
[1750648818544,9.214,2245.1,2244.8,5.35799]
[1750648818751,9.214,2245.1,2244.9,0.058]
[1750648818951,1.957,2245.1,2244.9,0.058]
[1750648819263,1.957,2245.1,2245.0,0.8257]
[1750648819484,1.957,2245.1,2245.0,2.444069]
[1750648822190,1.957,2245.1,2245.0,7.234069]
[1750648822376,1.957,2245.1,2245.0,5.6157]
[1750648823798,1.957,2245.1,2245.0,6.955109]
[1750648824992,1.957,2245.1,2245.0,6.187409]
[1750648825890,1.957,2245.1,2244.9,4.79]
[1750648827181,1.957,2245.1,2244.9,4.848]
[1750648827475,9.188,2245.0,2244.9,4.848]
[1750648828378,9.188,2245.0,2244.9,4.79]
[1750648831020,9.188,2245.0,2244.8,4.79]
[1750648831224,9.188,2245.0,2244.8,4.848]
[1750648831575,9.188,2245.0,2244.8,5.5476859]
[1750648831795,9.188,2245.0,2244.9,0.058]
[1750648833630,9.188,2245.0,2244.8,5.5476859]
[1750648833812,9.188,2245.0,2244.8,5.4896859]
[1750648834021,9.188,2245.0,2244.9,0.058]
[1750648835119,9.188,2245.0,2244.8,5.5476859]
[1750648835321,9.188,2245.0,2244.8,4.848]
[1750648836686,9.188,2245.0,2244.8,6.187593]
[1750648836998,9.188,2245.0,2244.9,4.848]
[1750648838327,9.188,2245.0,2244.9,4.79]
[1750648839326,9.188,2245.0,2244.9,4.848]
[1750648841697,9.188,2245.0,2244.9,4.79]
[1750648844243,10.1127,2245.0,2244.9,4.79]
[1750648844444,10.1127,2245.0,2244.5,4.79]
[1750648844445,0.2976,2244.8,2244.5,4.79]
[1750648844741,7.08352239,2244.7,2244.5,4.79]
[1750648845039,0.3566,2244.6,2244.5,4.79]
[1750648845239,1.10061224,2244.6,2244.5,4.79]
[1750648845740,0.3566,2244.6,2244.5,4.79]
[1750648846027,0.2976,2244.6,2244.5,4.79]
[1750648846405,9.182,2244.6,2244.5,4.79]
[1750648848645,9.182,2244.6,2244.3,6.130031]
[1750648849554,9.182,2244.6,2244.3,6.189331]
[1750648850339,9.182,2244.5,2244.4,0.0593]
[1750648850507,1.936,2244.8,2244.4,0.8047]
[1750648850711,7.246,2244.7,2244.6,0.0593]
[1750648851038,7.246,2244.7,2244.6,0.864]
[1750648851208,7.246,2244.7,2244.6,1.70695238]
[1750648852233,1.936,2244.8,2244.7,0.0593]
[1750648852539,9.182,2244.8,2244.7,0.0593]
[1750648854731,9.182,2244.8,2244.7,4.8493]
[1750648854930,9.182,2244.8,2244.7,6.189031]
[1750648856244,9.182,2244.8,2244.7,6.129731]
[1750648860442,9.182,2244.8,2244.7,6.189031]
[1750648864467,9.182,2244.8,2244.7,6.129731]
[1750648867267,9.182,2244.8,2244.7,6.189031]
[1750648867637,9.182,2244.8,2244.7,6.129731]
[1750648870348,0.2976,2245.3,2244.7,6.7486341]
[1750648870672,9.174,2245.2,2244.9,0.0593]
[1750648872545,9.174,2245.2,2244.8,5.623]
[1750648872740,9.174,2245.2,2245.0,0.0606]
[1750648874342,9.174,2245.2,2244.9,0.0606]
[1750648875374,9.174,2245.2,2245.0,4.79]
[1750648876576,0.3566,2245.1,2245.0,4.79]
[1750648877779,0.77361077,2245.1,2245.0,4.79]
[1750648877976,2.4766484,2245.1,2245.0,4.79]
[1750648878381,2.47670334,2245.1,2244.7,1.339731]
[1750648878581,7.49983124,2245.0,2244.5,4.79]
[1750648878755,7.72006571,2244.9,2244.6,1.339911]
[1750648878959,7.303,2244.9,2244.6,1.339911]
[1750648879155,1.02963272,2244.8,2244.6,1.339911]
[1750648879482,1.929,2244.7,2244.6,1.339911]
[1750648882002,0.3566,2245.1,2244.7,0.8297]
[1750648882003,0.2976,2245.1,2244.7,0.8297]
[1750648882212,9.59030145,2245.0,2244.8,0.0606]
[1750648882394,9.173,2245.0,2244.8,0.0606]
[1750648882777,10.2976,2245.3,2244.9,4.8506]
[1750648882981,0.41728423,2245.2,2245.0,4.79]
[1750648883168,9.173,2245.1,2245.0,4.8506]
[1750648884773,9.173,2245.1,2245.0,5.64]
[1750648884774,1.929,2245.1,2245.0,5.64]
[1750648884972,9.173,2245.1,2245.0,5.64]
[1750648885904,9.173,2245.1,2245.0,5.5794]
[1750648886105,9.173,2245.1,2245.0,6.19794]
[1750648886302,10.709,2245.4,2245.0,6.13734]
[1750648886493,9.171,2245.3,2245.0,6.13734]
[1750648887004,9.171,2245.3,2245.1,0.0606]
[1750648887172,9.171,2245.3,2245.1,4.8506]
[1750648889196,9.171,2245.3,2245.2,0.0606]
[1750648889799,9.171,2245.3,2245.2,1.400021]
[1750648890609,9.171,2245.3,2245.2,1.339421]
[1750648893215,9.171,2245.3,2245.2,6.190021]
[1750648894575,9.171,2245.3,2245.2,6.129421]
[1750648897186,9.171,2245.3,2245.2,4.79]
[1750648897492,10.094,2245.3,2245.2,4.79]
[1750648898007,9.171,2245.3,2245.2,4.79]
[1750648898714,9.171,2245.3,2245.2,4.8506]
[1750648899615,9.169,2245.3,2245.2,4.8506]
[1750648900193,9.169,2245.3,2245.2,4.79]
[1750648900501,1.927,2245.3,2245.2,4.8506]
[1750648900816,9.169,2245.3,2245.2,4.8506]
[1750648901610,9.169,2245.3,2245.2,4.79]
[1750648901814,0.2976,2245.6,2245.2,4.8506]
[1750648902014,9.169,2245.5,2245.3,0.0606]
[1750648903920,0.3542,2245.4,2245.2,4.79]
[1750648904910,0.4736799,2245.3,2245.1,1.339558]
[1750648905145,7.2986,2245.2,2245.1,1.339558]
[1750648908222,24.67904719,2245.2,2245.1,1.339558]
[1750648908401,24.67904719,2245.2,2244.6,0.772]
[1750648908723,25.49481754,2245.2,2244.6,2.111803]
[1750648909110,0.0566,2245.0,2244.6,1.339803]
[1750648909423,0.0566,2244.8,2244.6,1.339803]
[1750648909661,0.3542,2244.8,2244.6,6.129803]
[1750648910826,9.169,2244.9,2244.6,6.129803]
[1750648911294,10.0,2245.2,2244.6,6.7487433]
[1750648911497,9.58607522,2245.1,2244.7,0.0596]
[1750648911830,9.169,2245.1,2244.7,0.888]
[1750648912023,10.2976,2245.2,2244.7,0.888]
[1750648912215,10.2976,2245.2,2244.8,0.0596]
[1750648912216,9.58604035,2245.1,2244.8,0.0596]
[1750648912411,9.169,2245.1,2244.8,0.0596]
[1750648912922,10.2976,2245.2,2244.8,0.0596]
[1750648913125,9.169,2245.0,2244.8,0.0596]
[1750648913296,9.169,2245.0,2244.7,0.888]
[1750648913817,9.169,2245.0,2244.7,5.678]
[1750648915923,9.169,2245.0,2244.8,0.0596]
[1750648916630,9.169,2245.0,2244.9,1.33972]
[1750648917758,9.58597987,2245.0,2244.9,1.33972]
[1750648917923,11.63093786,2245.0,2244.9,1.33972]
[1750648918118,11.63096851,2245.0,2244.9,1.33972]
[1750648918330,11.63087979,2245.0,2244.7,4.79]
[1750648918545,0.4169218,2244.9,2244.7,4.79]
[1750648918853,0.0566,2244.9,2244.7,6.129857]
[1750648919352,0.3542,2244.8,2244.7,6.129857]
[1750648919521,7.85398046,2244.8,2244.7,1.339857]
[1750648919718,7.8539907,2244.8,2244.7,1.339857]
[1750648920141,0.41694351,2244.8,2244.7,1.339857]
[1750648920343,10.0,2245.2,2244.7,1.399457]
[1750648920546,1.925,2244.8,2244.7,1.399457]
[1750648920731,1.925,2245.1,2244.9,0.7533]
[1750648920932,1.925,2245.1,2245.0,0.0596]
[1750648921139,9.167,2245.1,2245.0,0.0596]
[1750648924562,1.925,2245.1,2245.0,0.0596]
[1750648924864,9.167,2245.1,2245.0,0.0596]
[1750648925471,9.167,2245.1,2245.0,4.8496]
[1750648925771,9.167,2245.1,2245.0,5.40989]
[1750648926347,9.167,2245.1,2245.0,4.8496]
[1750648926542,1.925,2245.1,2245.0,4.8496]
[1750648926847,9.167,2245.1,2245.0,4.8496]
[1750648927481,1.925,2245.3,2245.2,0.8388]
[1750648927645,10.707,2245.4,2245.2,6.13208]
[1750648927848,7.241,2245.3,2245.2,6.13208]
[1750648928170,7.241,2245.3,2245.2,6.19168]
[1750648929473,7.241,2245.3,2245.2,6.13208]
[1750648929868,7.241,2245.3,2245.2,6.19168]
[1750648930105,7.241,2245.3,2245.2,6.13208]
[1750648930460,7.241,2245.3,2245.2,6.19168]
[1750648930668,10.707,2245.4,2245.2,6.19168]
[1750648930879,7.241,2245.3,2245.2,7.530969]
[1750648931881,0.2976,2246.1,2245.3,0.0596]
[1750648932107,0.2976,2246.1,2245.6,0.0596]
[1750648932108,12.34179253,2246.0,2245.6,0.0596]
[1750648932292,7.65777666,2245.9,2245.6,0.0596]
[1750648932607,0.41677666,2245.8,2245.6,0.0594]
[1750648932807,7.241,2245.9,2245.6,0.0594]
[1750648933006,0.41676783,2245.8,2245.6,0.0594]
[1750648933204,8.93491817,2245.9,2245.6,0.0594]
[1750648933419,1.69391817,2245.9,2245.5,0.7914]
[1750648933701,7.241,2245.8,2245.7,0.0594]
[1750648934393,7.24,2245.8,2245.7,0.0594]
[1750648936914,7.24,2245.8,2245.6,4.79]
[1750648937211,7.24,2245.8,2245.6,4.8494]
[1750648937370,7.24,2245.8,2245.7,4.79]
[1750648938512,7.24,2245.8,2245.7,4.8494]
[1750648938825,7.24,2245.8,2245.7,4.79]
[1750648939223,7.24,2245.8,2245.7,6.129122]
[1750648940502,10.707,2246.2,2245.8,0.0594]
[1750648940697,10.707,2246.2,2246.0,0.8404]
[1750648940698,9.163,2246.1,2246.0,0.8404]
[1750648941592,9.163,2246.1,2245.9,4.79]
[1750648941791,9.163,2246.1,2245.9,4.8494]
[1750648942123,9.163,2246.1,2245.9,4.79]
[1750648942635,1.924,2246.1,2246.0,0.0594]
[1750648942804,9.162,2246.1,2246.0,0.8116]
[1750648943122,1.924,2246.1,2246.0,0.8116]
[1750648943306,9.162,2246.1,2246.0,0.8116]
[1750648943514,9.162,2246.1,2246.0,1.44813674]
[1750648943904,9.162,2246.1,2246.0,6.23813674]
[1750648944420,1.924,2246.1,2246.0,6.23813674]
[1750648944623,9.162,2246.1,2246.0,6.23813674]
[1750648947330,1.924,2246.1,2246.0,6.23813674]
[1750648947531,9.162,2246.1,2246.0,6.23813674]
[1750648947715,1.924,2246.1,2246.0,6.23813674]
[1750648947916,9.162,2246.1,2246.0,6.23813674]
[1750648948119,10.707,2246.2,2246.1,0.0594]
[1750648948296,0.2976,2246.8,2246.2,0.0594]
[1750648948497,12.33773688,2246.7,2246.4,0.0594]
[1750648948731,12.33773688,2246.7,2246.3,4.79]
[1750648948732,7.238,2246.6,2246.3,4.79]
[1750648949434,0.2976,2246.5,2246.3,4.79]
[1750648949596,7.2934,2246.4,2246.3,4.79]
[1750648949801,9.05759921,2246.4,2246.3,4.79]
[1750648950221,9.47340473,2246.4,2246.3,4.79]
[1750648950431,16.13259127,2246.4,2246.3,6.129008]
[1750648950751,9.05759921,2246.4,2246.3,4.79]
[1750648951323,7.591,2246.4,2246.3,4.79]
[1750648951952,8.0068799,2246.4,2246.3,4.79]
[1750648952147,7.591,2246.4,2246.2,1.339008]
[1750648952352,0.0564,2246.3,2246.2,1.339008]
[1750648953464,10.354,2246.3,2246.2,1.339008]
[1750648953661,0.2976,2246.2,2245.5,4.79]
[1750648953867,9.2154,2246.1,2246.0,1.339175]
[1750648954032,9.63136503,2246.1,2246.0,1.339175]
[1750648954226,9.4566,2246.1,2245.5,4.79]
[1750648954431,9.4566,2246.1,2245.4,0.8133]
[1750648954432,0.0564,2245.9,2245.6,6.129223]
[1750648954628,7.237,2245.8,2245.6,6.129223]
[1750648958077,7.237,2245.8,2245.6,1.339223]
[1750648959297,7.237,2245.8,2245.6,1.398623]
[1750648959474,7.237,2245.8,2245.6,2.0394153]
[1750648959874,7.237,2245.8,2245.6,2.0988153]
[1750648960295,0.354,2246.1,2245.6,2.0988153]
[1750648960591,1.922,2245.7,2245.6,1.398623]
[1750648961093,1.922,2245.7,2245.6,1.339223]
[1750648961664,9.159,2245.7,2245.6,1.339223]
[1750648963999,9.159,2245.7,2245.6,6.129223]
[1750648965203,9.159,2245.7,2245.6,4.79]
[1750648967702,9.158,2245.7,2245.6,4.79]
[1750648967865,9.158,2245.7,2245.6,4.8507]
[1750648972706,9.158,2245.7,2245.6,4.79]
[1750648974606,9.158,2245.7,2245.6,4.8507]
[1750648974783,9.158,2245.7,2245.6,5.5510181]
[1750648974984,10.704,2246.1,2245.6,6.2892181]
[1750648975196,9.158,2246.0,2245.7,0.0607]
[1750648975510,10.704,2246.1,2245.7,0.0607]
[1750648975713,9.158,2246.0,2245.7,0.0607]
[1750648975898,10.704,2246.1,2245.7,4.79]
[1750648976078,9.158,2246.0,2245.7,4.79]
[1750648976411,9.158,2245.9,2245.8,0.0607]
[1750648976608,10.704,2246.1,2245.8,5.571]
[1750648976810,12.626,2246.1,2246.0,0.781]
[1750648977115,19.862,2246.1,2246.0,0.8417]
[1750648978385,12.626,2246.1,2246.0,0.8417]
[1750648978712,19.861,2246.1,2246.0,2.11690637]
[1750648979396,1.922,2246.1,2246.0,6.90690637]
[1750648979597,9.157,2246.1,2246.0,6.90690637]
[1750648980312,0.2976,2246.7,2246.1,0.0607]
[1750648980607,9.154,2246.6,2246.0,6.06520637]
[1750648980799,9.154,2246.5,2246.2,0.0607]
[1750648980975,7.235,2246.4,2246.3,5.5787]
[1750648981174,7.235,2246.4,2246.3,5.6394]
[1750648981379,7.235,2246.4,2246.3,4.79]
[1750648984630,7.235,2246.4,2246.2,4.79]
[1750648986724,7.235,2246.4,2246.3,0.0607]
[1750648987133,7.235,2246.4,2246.3,0.62756]
[1750648987316,9.152,2246.4,2246.3,0.62756]
[1750648990633,9.152,2246.4,2246.3,5.41756]
[1750648993315,9.152,2246.4,2246.3,4.8507]
[1750648995558,9.152,2246.4,2246.3,6.189361]
[1750648999964,11.0596,2246.9,2246.3,6.189361]
[1750648999965,11.0006,2246.9,2246.4,0.55]
[1750649000153,9.15,2246.8,2246.6,0.8659]
[1750649000353,9.15,2246.8,2246.7,4.79]
[1750649000964,9.15,2246.8,2246.7,6.128476]
[1750649001327,1.919,2246.8,2246.7,6.128476]
[1750649001526,9.15,2246.8,2246.7,6.128476]
[1750649002364,9.15,2246.8,2246.7,4.79]
[1750649002551,9.15,2246.8,2246.7,4.8491]
[1750649003985,9.149,2246.8,2246.7,4.8491]
[1750649006195,9.149,2246.8,2246.7,4.79]
[1750649009395,9.149,2246.8,2246.7,6.128423]
[1750649010082,11.4908,2246.8,2246.7,10.0]
[1750649010286,11.90769149,2246.8,2246.7,10.0]
[1750649010466,11.84869149,2246.8,2246.7,10.0]
[1750649010660,11.4318,2246.8,2246.7,10.0]
[1750649011067,11.84867538,2246.8,2246.7,10.0]
[1750649011274,9.4466,2246.8,2246.7,10.0]
[1750649011768,9.92245745,2246.8,2246.7,10.0]
[1750649011994,9.92246029,2246.8,2246.7,10.0]
[1750649012698,9.9224963,2246.8,2246.7,10.0]
[1750649012902,9.9224965,2246.8,2246.7,10.0]
[1750649014108,9.9174965,2246.8,2246.6,4.79]
[1750649014319,9.5006,2246.8,2246.5,4.79]
[1750649015518,9.4416,2246.8,2246.5,4.79]
[1750649017507,9.5006,2246.8,2246.5,4.79]
[1750649017718,11.52096,2246.8,2246.5,4.79]
[1750649017906,11.52096,2246.8,2246.4,4.79]
[1750649017907,0.4170127,2246.7,2246.4,4.79]
[1750649018077,7.7040127,2246.6,2246.4,4.79]
[1750649018284,7.287,2246.6,2246.4,4.79]
[1750649019036,7.99931035,2246.6,2246.4,4.79]
[1750649019214,0.41705282,2246.5,2246.4,4.79]
[1750649019414,0.3566,2246.5,2246.4,4.79]
[1750649019585,0.77365774,2246.5,2246.4,4.79]
[1750649019790,0.3566,2246.5,2246.4,4.79]
[1750649020010,0.77365886,2246.5,2246.4,4.79]
[1750649020536,0.2976,2246.5,2246.4,4.79]
[1750649020698,0.71465658,2246.5,2246.4,4.79]
[1750649020897,0.71467488,2246.5,2246.4,4.79]
[1750649021723,0.71467078,2246.5,2246.4,4.79]
[1750649022329,1.58606889,2246.5,2246.4,4.79]
[1750649023122,1.16899811,2246.5,2246.3,4.79]
[1750649023324,0.2976,2246.5,2246.3,4.79]
[1750649023498,1.915,2246.4,2246.3,4.79]
[1750649026235,1.915,2246.4,2246.1,1.338817]
[1750649026393,7.94160524,2246.3,2245.7,4.79]
[1750649026591,0.059,2246.2,2246.0,1.339044]
[1750649026791,1.00886,2246.2,2246.0,1.339044]
[1750649027695,7.5246,2246.3,2246.0,1.339044]
[1750649027990,0.41703625,2246.2,2246.0,1.339044]
[1750649028220,7.5836,2246.3,2246.0,1.339044]
[1750649028531,0.41703416,2246.2,2246.0,1.339044]
[1750649028743,7.5836,2246.3,2246.0,1.339044]
[1750649028953,9.2410443,2246.3,2246.0,1.339044]
[1750649029753,0.059,2246.2,2246.0,1.339044]
[1750649031255,9.1820443,2246.3,2246.0,1.339044]
[1750649031456,9.2410443,2246.3,2246.0,1.339044]
[1750649032550,0.059,2246.2,2246.0,1.339044]
[1750649032748,0.059,2246.1,2245.9,4.79]
[1750649032956,7.227,2246.0,2245.9,6.129098]
[1750649035670,7.227,2246.0,2245.9,4.79]
[1750649037873,7.227,2246.0,2245.8,6.129097]
[1750649038172,1.915,2245.9,2245.8,6.186997]
[1750649038500,1.915,2245.9,2245.8,1.396997]
[1750649038662,0.2976,2246.7,2246.0,0.7941]
[1750649038833,0.41649782,2246.6,2246.2,0.0579]
[1750649039037,1.915,2246.6,2246.4,0.0579]
[1750649039276,1.915,2246.6,2246.4,0.1024122]
[1750649039277,7.227,2246.6,2246.4,0.1024122]
[1750649039480,12.618,2246.9,2246.5,4.8479]
[1750649039666,7.227,2246.8,2246.7,0.0579]
[1750649043396,7.227,2246.8,2246.6,4.79]
[1750649043902,7.227,2246.8,2246.7,4.79]
[1750649044502,7.5246,2246.8,2246.7,4.79]
[1750649044706,9.54476,2246.8,2246.7,4.79]
[1750649044906,9.54476,2246.8,2246.5,1.338458]
[1750649045510,9.54476,2246.8,2246.5,6.128458]
[1750649046299,10.703,2246.9,2246.6,0.0579]
[1750649046486,9.135,2246.7,2246.6,0.0579]
[1750649046906,9.135,2246.7,2246.5,6.128458]
[1750649047120,9.135,2246.6,2246.5,6.128458]
[1750649047409,9.135,2246.6,2246.5,6.186358]
[1750649047592,9.135,2246.6,2246.5,1.338458]
[1750649047593,0.2976,2246.6,2246.5,1.338458]
[1750649047797,9.135,2246.6,2246.4,4.79]
[1750649048014,9.135,2246.6,2246.4,6.128709]
[1750649049113,9.135,2246.6,2246.4,1.338709]
[1750649049412,11.08416,2246.6,2246.4,1.338709]
[1750649049608,11.08416,2246.6,2246.2,4.8479]
[1750649049977,0.2976,2246.5,2246.3,1.338769]
[1750649050172,0.2976,2246.5,2245.8,0.7591]
[1750649050373,0.2976,2246.5,2246.2,1.338769]
[1750649052518,0.2976,2246.5,2246.2,1.400569]
[1750649056217,0.2976,2246.5,2246.2,1.338769]
[1750649056422,0.2976,2246.5,2246.3,0.0618]
[1750649057817,0.2976,2246.5,2246.2,1.338769]
[1750649058021,1.08111035,2246.5,2246.2,1.400569]
[1750649060130,1.08111035,2246.5,2246.3,0.0618]
[1750649060298,0.2976,2246.5,2246.3,0.0618]
[1750649061827,0.2976,2246.5,2246.2,1.338769]
[1750649061996,0.3565,2246.5,2246.2,1.338769]
[1750649065437,0.2976,2246.3,2246.2,1.338769]
[1750649065638,0.3565,2246.3,2246.2,1.338769]
[1750649065806,1.0408343,2246.3,2245.8,4.79]
[1750649066132,7.2819,2246.2,2245.8,4.8518]
[1750649066310,1.91,2246.1,2245.8,6.190897]
[1750649067929,1.91,2246.1,2245.9,0.0618]
[1750649075056,9.128,2246.0,2245.9,0.0618]
[1750649085281,9.128,2246.0,2245.8,6.129097]
[1750649085481,9.128,2246.0,2245.8,6.186097]
[1750649085979,9.128,2246.0,2245.8,1.339097]
[1750649085980,0.2976,2245.9,2245.8,1.339097]
[1750649086183,10.77406821,2245.9,2245.8,1.339097]
[1750649086337,10.2976,2245.3,2244.6,0.8381]
[1750649086542,0.059,2245.1,2244.6,0.057]
[1750649086779,0.47646821,2245.0,2244.4,0.8381]
[1750649086977,0.71506821,2244.9,2244.4,0.7811]
[1750649087279,0.2976,2244.9,2244.5,0.057]
[1750649087780,0.3566,2244.9,2244.4,0.7811]
[1750649087948,0.3566,2244.9,2244.0,1.339899]
[1750649087949,0.47546328,2244.8,2244.2,0.057]
[1750649088145,9.54346328,2244.7,2244.2,0.057]
[1750649088359,0.41650325,2244.6,2244.2,0.057]
[1750649088560,10.0988,2244.7,2244.2,0.057]
[1750649088767,0.41646283,2244.6,2244.2,0.057]
[1750649088969,10.0988,2244.7,2244.2,0.057]
[1750649089199,10.0988,2244.7,2243.9,2.135799]
[1750649089200,0.47546073,2244.6,2243.9,2.135799]
[1750649089496,1.40812607,2244.5,2243.9,0.7959]
[1750649089700,1.34912607,2244.5,2243.6,2.193116]
[1750649089852,1.34912607,2244.5,2243.7,0.057]
[1750649089853,0.059,2244.4,2243.7,0.057]
[1750649090593,1.40812607,2244.5,2243.7,0.057]
[1750649090880,11.14081261,2244.4,2243.7,0.057]
[1750649092090,19.128,2244.3,2243.7,0.057]
[1750649094088,0.55,2245.1,2243.6,1.29360059]
[1750649094089,0.3566,2245.0,2244.2,0.057]
[1750649094285,0.76916689,2245.9,2243.6,10.49770059]
[1750649094286,0.2976,2244.7,2243.9,0.8474]
[1750649094592,0.059,2244.5,2243.7,0.8474]
[1750649094794,9.129,2244.4,2243.7,0.8474]
[1750649094992,9.188,2244.4,2243.7,0.8474]
[1750649095206,10.2976,2244.3,2243.5,0.057]
[1750649095361,8.6935871,2244.2,2243.5,0.057]
[1750649095565,0.059,2244.1,2243.5,0.057]
[1750649096416,10.059,2244.1,2243.4,0.7643]
[1750649096720,0.3566,2244.0,2243.4,0.7643]
[1750649096864,9.131,2243.9,2243.4,0.7643]
[1750649097220,9.19,2243.9,2243.4,0.8213]
[1750649098482,7.13484304,2243.7,2242.6,0.7758]
[1750649098667,10.059,2243.6,2242.7,0.057]
[1750649099019,7.225,2243.5,2242.8,0.057]
[1750649099165,1.907,2243.4,2242.8,0.057]
[1750649101098,0.2976,2243.3,2242.8,0.057]
[1750649101406,9.131,2243.2,2242.8,0.057]
[1750649102099,9.133,2243.1,2242.8,0.057]
[1750649102297,9.133,2243.1,2242.7,7.86670704]
[1750649102499,9.133,2243.1,2242.9,0.057]
[1750649102702,9.133,2243.1,2242.6,11.21836477]
[1750649102904,10.4029,2243.1,2242.6,0.7758]
[1750649103221,10.4029,2243.1,2242.4,0.057]
[1750649103772,1.11492629,2243.5,2242.7,0.057]
[1750649103773,0.059,2243.3,2242.7,0.057]
[1750649103991,9.128,2243.2,2243.0,0.057]
[1750649104216,9.128,2243.2,2242.9,0.057]
[1750649104418,9.128,2243.2,2242.8,10.0]
[1750649104626,9.128,2243.2,2242.9,0.057]
[1750649105025,9.128,2243.2,2242.8,0.057]
[1750649105760,9.128,2243.2,2242.7,7.84434304]
[1750649106058,9.128,2243.2,2242.8,0.057]
[1750649106255,9.128,2243.2,2242.8,0.10158221]
[1750649106458,9.128,2243.2,2242.8,0.057]
[1750649106610,1.47152629,2243.5,2242.9,0.8262]
[1750649106611,7.227,2243.1,2242.9,0.8262]
[1750649106809,7.227,2243.1,2243.0,0.057]
[1750649107464,0.2976,2243.7,2243.0,0.057]
[1750649107663,0.059,2243.8,2243.4,0.057]
[1750649107664,7.227,2243.6,2243.4,0.057]
[1750649107943,7.227,2243.6,2243.3,0.7718]
[1750649108108,7.227,2243.6,2243.4,0.057]
[1750649109038,7.227,2243.5,2243.4,0.057]
[1750649109242,7.227,2243.5,2243.4,0.8474643]
[1750649110247,7.227,2243.5,2243.4,0.057]
[1750649110613,7.227,2243.6,2243.4,0.057]
[1750649111149,1.904,2243.7,2243.4,0.057]
[1750649111354,7.227,2243.6,2243.4,0.057]
[1750649111643,7.227,2243.6,2243.5,0.057]
[1750649111947,7.227,2243.6,2243.5,4.847]
[1750649115862,7.227,2243.6,2243.5,4.79]
[1750649116018,7.2833,2243.6,2243.5,4.79]
[1750649116455,7.99588524,2243.6,2243.5,4.79]
[1750649116631,26.76930111,2243.6,2243.5,4.79]
[1750649116975,10.0,2243.5,2242.9,4.79]
[1750649117157,7.37344304,2243.3,2242.6,4.79]
[1750649117463,0.3539,2242.9,2242.4,1.340857]
[1750649117668,0.3539,2242.9,2242.1,0.8131]
[1750649117669,7.69728524,2242.8,2242.2,4.79]
[1750649117818,2.31898524,2242.7,2242.2,5.35031]
[1750649118023,1.904,2242.7,2242.3,0.057]
[1750649118567,7.2823,2242.8,2242.5,0.057]
[1750649118568,7.226,2242.6,2242.5,0.057]
[1750649118931,7.226,2242.7,2242.6,1.3832]
[1750649119239,7.226,2242.7,2242.6,8.45904304]
[1750649119433,7.226,2242.7,2242.6,2.7081043]
[1750649119852,7.226,2242.7,2242.6,1.3832]
[1750649121574,7.226,2242.7,2242.6,0.8332]
[1750649121874,1.904,2243.0,2242.7,0.057]
[1750649122077,7.64198495,2242.9,2242.7,0.057]
[1750649122254,7.227,2242.9,2242.7,0.057]
[1750649123694,7.227,2242.9,2242.8,4.79]
[1750649123859,7.64212675,2242.9,2242.8,4.79]
[1750649124344,7.64212675,2242.9,2242.8,4.847]